bitfinex-derivatives/quotes_SOLF0:USTF0_20250816
["timestamp","ask_amount","ask_price","bid_price","bid_amount"]
[1755365767531,2.93,187.75,187.71,3.08]
[1755365767928,2.93,187.75,187.72,3.08]
[1755365768230,2.93,187.75,187.73,3.08]
[1755365772236,2.93,187.75,187.74,3.08]
[1755365773034,2.93,187.81,187.71,2.54709546]
[1755365773335,2.93,187.8,187.72,3.08]
[1755365773526,4.13433718,187.79,187.72,3.08]
[1755365773727,2.93,187.78,187.72,3.08]
[1755365774233,2.93,187.78,187.74,5.3225]
[1755365774429,2.93,187.78,187.71,2.54709546]
[1755365774635,2.93,187.78,187.76,3.08]
[1755365775232,5.3222,187.76,187.73,5.3229]
[1755365775434,5.3222,187.76,187.75,3.08]
[1755365775634,8.2522,187.76,187.75,3.08]
[1755365776438,8.2524,187.75,187.73,3.08]
[1755365776637,5.3224,187.75,187.72,5.3232]
[1755365776836,8.2524,187.75,187.74,3.08]
[1755365778939,2.93,187.75,187.74,3.08]
[1755365779141,5.3222,187.76,187.74,3.08]
[1755365779334,8.3422,187.76,187.74,3.08]
[1755365779835,3.02,187.76,187.74,3.08]
[1755365780040,3.02,187.78,187.75,2.85]
[1755365780439,3.02,187.78,187.75,8.1722]
[1755365780742,3.02,187.78,187.76,2.85]
[1755365782541,3.02,187.78,187.76,5.3221]
[1755365782740,3.02,187.78,187.77,2.85]
[1755365783439,7.16569217,187.78,187.77,2.85]
[1755365783841,4.45318747,187.84,187.77,2.85]
[1755365784044,3.02,187.82,187.77,2.85]
[1755365784244,4.45318747,187.84,187.77,2.85]
[1755365784245,3.02,187.8,187.77,2.85]
[1755365784434,8.3412,187.8,187.77,2.85]
[1755365784639,3.02,187.79,187.77,2.85]
[1755365785245,3.02,187.79,187.75,2.85]
[1755365785546,5.3218,187.78,187.75,2.85]
[1755365785749,3.02,187.77,187.75,2.85]
[1755365786046,3.02,187.77,187.75,5.3223]
[1755365786243,3.02,187.77,187.76,2.85]
[1755365788145,8.3418,187.77,187.76,2.85]
[1755365793240,3.02,187.77,187.76,2.85]
[1755365796551,3.02,187.77,187.76,8.1722]
[1755365798349,3.02,187.78,187.77,2.85]
[1755365798851,3.02,187.78,187.77,8.1719]
[1755365799046,5.3215,187.79,187.78,2.85]
[1755365799247,8.3415,187.79,187.78,2.85]
[1755365799550,5.3215,187.79,187.77,6.95135815]
[1755365799751,3.02,187.79,187.78,2.85]
[1755365800750,3.02,187.79,187.78,8.1717]
[1755365801052,3.02,187.81,187.78,2.85]
[1755365801244,3.02,187.81,187.8,2.85]
[1755365801545,4.44188038,187.86,187.8,2.85]
[1755365801750,3.02,187.82,187.81,1.62945815]
[1755365801950,3.02,187.82,187.81,4.47945815]
[1755365802149,7.1684944,187.82,187.81,4.47945815]
[1755365802542,7.1684944,187.82,187.81,8.1707]
[1755365802744,7.1684944,187.82,187.81,2.85]
[1755365804751,3.02,187.82,187.81,2.85]
[1755365807751,8.3405,187.82,187.81,2.85]
[1755365808956,2.92,187.81,187.78,1.62945815]
[1755365809260,2.92,187.8,187.77,4.52945815]
[1755365809560,2.92,187.83,187.78,2.9]
[1755365809759,2.92,187.81,187.78,2.9]
[1755365811162,5.3211,187.8,187.78,2.9]
[1755365811361,2.92,187.79,187.78,2.9]
[1755365811660,7.36188038,187.84,187.77,2.9]
[1755365811856,2.92,187.82,187.77,2.9]
[1755365812059,2.92,187.8,187.77,2.9]
[1755365812256,2.92,187.8,187.73,2.9]
[1755365812950,4.14975816,187.79,187.73,2.9]
[1755365813156,2.92,187.78,187.75,5.3225]
[1755365813357,2.92,187.77,187.75,5.3225]
[1755365813564,2.92,187.77,187.76,2.9]
[1755365815862,2.92,187.82,187.75,2.9]
[1755365816058,2.92,187.8,187.72,2.54551567]
[1755365816260,2.92,187.78,187.76,2.9]
[1755365816561,4.15509332,187.77,187.73,2.9]
[1755365816762,2.92,187.78,187.73,2.9]
[1755365816954,2.92,187.76,187.71,2.9]
[1755365817155,4.15508105,187.75,187.71,2.9]
[1755365817353,2.92,187.73,187.71,2.9]
[1755365818962,2.92,187.73,187.72,2.9]
[1755365819864,8.2431,187.73,187.72,2.9]
[1755365820263,8.94230019,187.83,187.68,128.98]
[1755365820264,4.44188038,187.79,187.73,2.9]
[1755365820463,4.15364197,187.78,187.73,2.9]
[1755365820663,2.92,187.79,187.77,2.9]
[1755365821260,8.2416,187.79,187.77,2.9]
[1755365821461,2.92,187.79,187.77,5.3219]
[1755365821664,2.92,187.79,187.78,2.9]
[1755365822066,7.07589263,187.79,187.78,2.9]
[1755365822879,7.07589263,187.79,187.78,8.2217]
[1755365825567,4.15589263,187.79,187.78,8.2217]
[1755365825760,4.15589263,187.79,187.78,5.3217]
[1755365825962,7.07926749,187.8,187.79,2.9]
[1755365828469,7.07926749,187.8,187.79,8.2213]
[1755365829073,4.15926749,187.8,187.79,8.2213]
[1755365829870,7.07926749,187.8,187.79,8.2213]
[1755365831174,7.07926749,187.8,187.79,2.9]
[1755365831369,2.92,187.79,187.76,2.9]
[1755365831571,2.92,187.77,187.74,2.9]
[1755365831971,5.3223,187.76,187.74,2.9]
[1755365832172,2.92,187.75,187.74,2.9]
[1755365832874,8.2424,187.75,187.74,2.9]
[1755365833878,2.92,187.75,187.74,2.9]
[1755365836282,8.2424,187.75,187.74,2.9]
[1755365839081,8.2424,187.75,187.72,2.54551567]
[1755365839282,5.3229,187.74,187.73,2.94]
[1755365839677,8.2129,187.74,187.73,2.94]
[1755365841088,2.89,187.74,187.73,2.94]
[1755365841284,2.89,187.79,187.73,2.94]
[1755365841488,2.89,187.77,187.73,2.94]
[1755365841881,2.89,187.77,187.76,2.94]
[1755365844284,4.44188038,187.83,187.75,2.54551567]
[1755365844491,2.89,187.84,187.82,2.94]
[1755365844688,91.7327272,187.89,187.82,2.94]
[1755365844982,91.7327272,187.89,187.81,2.54551567]
[1755365844983,2.89,187.87,187.79,2.94]
[1755365845188,18.34035787,187.88,187.75,2.54551567]
[1755365845189,8.57113015,187.86,187.78,2.94]
[1755365845389,4.12924977,187.85,187.78,2.94]
[1755365845585,2.54551567,187.88,187.78,2.94]
[1755365845586,2.89,187.83,187.78,2.94]
[1755365845891,2.89,187.81,187.79,2.94]
[1755365848581,2.89,187.81,187.76,5.3221]
[1755365848984,2.89,187.81,187.78,2.94]
[1755365849791,2.89,187.81,187.79,2.94]
[1755365850192,5.3213,187.8,187.79,2.94]
[1755365850393,8.2113,187.8,187.79,2.94]
[1755365857899,5.3215,187.79,187.76,5.3221]
[1755365858093,2.89,187.77,187.76,2.94]
[1755365858293,2.54551567,187.85,187.62,27.91828474]
[1755365858294,4.44188038,187.83,187.62,11.93998474]
[1755365858490,2.89,187.78,187.68,5.3244]
[1755365858695,2.89,187.76,187.69,2.94]
[1755365858993,2.89,187.74,187.69,2.94]
[1755365859207,8.2137,187.71,187.69,2.94]
[1755365865404,2.89,187.71,187.69,5.3241]
[1755365865598,2.89,187.71,187.7,2.94]
[1755365866503,8.2136,187.71,187.7,2.94]
[1755365867003,8.2136,187.71,187.68,5.3243]
[1755365867306,8.2136,187.71,187.7,2.94]
[1755365869213,2.89,187.71,187.7,2.94]
[1755365870508,5.3231,187.73,187.7,2.94]
[1755365871309,2.91,187.72,187.7,2.94]
[1755365872012,2.91,187.72,187.7,8.2639]
[1755365872207,2.91,187.71,187.7,5.3239]
[1755365872709,2.91,187.71,187.7,8.4039]
[1755365873710,2.91,187.72,187.7,8.4039]
[1755365873911,2.91,187.72,187.71,3.08]
[1755365877310,2.91,187.72,187.71,8.4036]
[1755365879703,2.91,187.79,187.71,3.08]
[1755365879908,2.91,187.77,187.71,3.08]
[1755365880616,2.91,187.82,187.71,3.08]
[1755365880814,2.91,187.8,187.71,3.08]
[1755365881011,2.91,187.78,187.71,3.08]
[1755365881211,5.3227,187.74,187.71,5.3234]
[1755365881515,2.91,187.73,187.72,3.08]
[1755365881717,8.233,187.73,187.72,3.08]
[1755365883420,2.91,187.73,187.72,3.08]
[1755365884015,2.91,187.73,187.7,129.26]
[1755365884016,2.91,187.75,187.73,3.08]
[1755365884318,2.91,187.8,187.73,3.08]
[1755365884515,8.2322,187.76,187.71,3.08]
[1755365884716,2.91,187.75,187.71,3.08]
[1755365885218,2.91,187.74,187.71,3.08]
[1755365885718,2.91,187.74,187.72,5.3233]
[1755365885919,2.91,187.74,187.73,3.08]
[1755365886815,4.44188038,187.83,187.73,3.08]
[1755365887015,4.06541809,187.82,187.71,3.08]
[1755365887219,2.91,187.8,187.71,3.08]
[1755365887515,2.91,187.78,187.72,5.3232]
[1755365887712,2.91,187.78,187.71,3.08]
[1755365889817,2.91,187.78,187.71,8.4036]
[1755365890022,2.91,187.78,187.72,3.08]
[1755365890219,4.06474309,187.77,187.72,3.08]
[1755365890430,2.91,187.8,187.72,3.08]
[1755365890634,4.06473678,187.79,187.72,3.08]
[1755365890833,2.91,187.77,187.72,8.4033]
[1755365891033,2.91,187.77,187.73,3.08]
[1755365891229,2.91,187.77,187.74,3.08]
[1755365891533,2.91,187.77,187.72,3.08]
[1755365892030,4.44188038,187.82,187.7,131.80551567]
[1755365892232,2.91,187.77,187.75,3.08]
[1755365894137,8.2321,187.77,187.75,3.08]
[1755365895040,2.91,187.76,187.75,3.08]
[1755365897138,8.2321,187.77,187.75,3.08]
[1755365897538,8.2316,187.79,187.76,3.08]
[1755365898234,2.91,187.78,187.76,5.3221]
[1755365898433,2.91,187.78,187.77,3.08]
[1755365900830,2.91,187.78,187.77,5.3219]
[1755365901036,2.91,187.78,187.77,8.2519]
[1755365903937,2.91,187.78,187.77,2.93]
[1755365906940,8.2316,187.78,187.77,2.93]
[1755365907140,3.12,187.77,187.76,2.93]
[1755365907639,8.4419,187.77,187.76,2.93]
[1755365908741,3.12,187.76,187.75,2.93]
[1755365909241,3.12,187.76,187.74,8.2525]
[1755365909438,3.12,187.76,187.73,5.3229]
[1755365909740,3.12,187.76,187.74,2.93]
[1755365911437,3.12,187.75,187.74,2.93]
[1755365920549,7.186761,187.75,187.71,2.93]
[1755365920749,5.3232,187.73,187.71,2.93]
[1755365921048,3.12,187.72,187.71,2.93]
[1755365923554,8.4433,187.72,187.71,2.93]
[1755365924856,3.12,187.77,187.67,2.93]
[1755365925052,3.12,187.75,187.67,2.93]
[1755365925251,3.12,187.73,187.67,2.93]
[1755365925852,3.12,187.73,187.67,5.3246]
[1755365926054,3.12,187.73,187.68,2.93]
[1755365926253,4.06774532,187.72,187.66,132.09]
[1755365926453,7.00171793,187.75,187.67,2.93]
[1755365926454,7.18774532,187.71,187.67,2.93]
[1755365926653,3.12,187.7,187.67,2.93]
[1755365927256,3.12,187.7,187.68,2.93]
[1755365928054,7.00171793,187.75,187.66,134.485]
[1755365928256,7.18490103,187.74,187.65,8.2552]
[1755365928556,3.12,187.72,187.65,8.2552]
[1755365928758,3.04,187.7,187.65,8.2552]
[1755365929060,3.04,187.7,187.65,2.93]
[1755365929357,4.06143748,187.69,187.63,2.97]
[1755365929557,3.04,187.67,187.63,2.97]
[1755365929756,3.04,187.67,187.62,2.97]
[1755365930250,3.04,187.67,187.6,2.97]
[1755365931659,3.04,187.67,187.61,2.97]
[1755365934156,3.04,187.67,187.59,129.28]
[1755365934356,3.04,187.67,187.6,2.97]
[1755365935056,2.54551567,187.69,187.6,2.97]
[1755365935057,3.04,187.62,187.6,2.97]
[1755365935252,5.3261,187.63,187.58,5.3272]
[1755365935453,3.04,187.62,187.57,5.3275]
[1755365935654,3.04,187.6,187.58,2.97]
[1755365935962,2.54551567,187.66,187.58,8.2972]
[1755365936158,3.04,187.68,187.59,2.97]
[1755365937262,5.3259,187.63,187.59,5.3269]
[1755365937463,3.04,187.62,187.6,2.97]
[1755365937759,5.3259,187.63,187.6,2.97]
[1755365938061,3.04,187.61,187.6,2.97]
[1755365940763,3.04,187.68,187.6,2.97]
[1755365942165,5.3253,187.65,187.61,5.3263]
[1755365942363,3.04,187.64,187.62,2.97]
[1755365942662,5.3253,187.65,187.62,2.97]
[1755365942663,3.04,187.63,187.62,2.97]
[1755365944362,5.3253,187.65,187.63,2.97]
[1755365944554,5.3256,187.64,187.62,2.97]
[1755365945059,3.04,187.63,187.62,2.97]
[1755365945968,3.04,187.68,187.59,2.97]
[1755365946765,2.54551567,187.69,187.59,2.97]
[1755365946967,3.04,187.68,187.59,2.97]
[1755365947261,3.04,187.65,187.59,2.97]
[1755365947456,5.3267,187.61,187.59,2.97]
[1755365947655,3.04,187.6,187.59,2.97]
[1755365948056,5.3267,187.61,187.59,2.97]
[1755365948265,8.3667,187.61,187.59,2.97]
[1755365950768,5.3262,187.62,187.59,2.97]
[1755365951067,5.3262,187.62,187.6,2.97]
[1755365951566,8.3662,187.62,187.6,2.97]
[1755365952071,5.3262,187.62,187.6,2.97]
[1755365952267,8.3664,187.61,187.6,2.97]
[1755365958773,3.02,187.58,187.57,2.83]
[1755365958974,3.02,187.65,187.57,2.83]
[1755365959369,3.02,187.6,187.58,2.83]
[1755365961378,8.3468,187.6,187.58,2.83]
[1755365962285,3.02,187.59,187.58,2.83]
[1755365962876,8.347,187.59,187.58,2.83]
[1755365963081,3.02,187.65,187.55,2.83]
[1755365963279,3.02,187.63,187.55,2.83]
[1755365964378,3.02,187.58,187.57,2.83]
[1755365968269,8.3473,187.58,187.57,2.83]
[1755365970582,8.3476,187.57,187.56,4.46281987]
[1755365970783,3.02,187.57,187.56,4.46281987]
[1755365971379,8.3474,187.58,187.57,2.83]
[1755365973186,3.02,187.58,187.57,2.83]
[1755365978881,8.3473,187.58,187.57,2.83]
[1755365979287,3.02,187.58,187.57,2.83]
[1755365981586,8.3473,187.58,187.57,2.83]
[1755365981991,3.02,187.58,187.57,2.83]
[1755365984899,8.3473,187.58,187.57,2.83]
[1755365987811,3.02,187.58,187.57,2.83]
[1755365989614,8.3473,187.58,187.57,2.83]
[1755365990709,3.02,187.58,187.57,2.83]
[1755365991612,8.3473,187.58,187.57,2.83]
[1755365992511,8.3473,187.58,187.55,9.84081987]
[1755365992808,3.11,187.56,187.55,2.88]
[1755365995415,8.4378,187.56,187.55,2.88]
[1755365997919,3.11,187.55,187.54,132.3]
[1755365998114,8.4381,187.55,187.54,132.3]
[1755365998919,8.4381,187.55,187.54,2.88]
[1755366000820,3.11,187.55,187.54,2.88]
[1755366002319,8.4381,187.55,187.54,2.88]
[1755366005720,3.11,187.53,187.52,4.51281987]
[1755366006623,3.11,187.53,187.52,9.84181987]
[1755366006924,3.11,187.54,187.52,6.96181987]
[1755366007125,3.11,187.54,187.53,2.88]
[1755366017227,3.11,187.6,187.53,2.88]
[1755366017428,3.11,187.58,187.57,2.88]
[1755366017729,7.18321549,187.58,187.57,2.88]
[1755366018630,7.18321549,187.58,187.57,8.2075]
[1755366021931,1.63281987,187.64,187.6,2.99]
[1755366021932,2.91,187.61,187.6,2.99]
[1755366022228,6.98662816,187.61,187.6,2.99]
[1755366023931,12.31302816,187.61,187.6,2.99]
[1755366028031,8.2364,187.61,187.6,2.99]
[1755366028630,2.91,187.61,187.6,2.99]
[1755366034336,8.2364,187.61,187.6,2.99]
[1755366045041,4.07484829,187.61,187.56,129.16]
[1755366045335,2.91,187.6,187.56,129.16]
[1755366045537,2.91,187.6,187.56,2.99]
[1755366045742,2.91,187.57,187.53,2.99]
[1755366045942,2.91,187.57,187.52,1.63281987]
[1755366046236,5.3286,187.54,187.53,2.99]
[1755366046435,5.3286,187.54,187.5,129.12]
[1755366046436,1.63281987,187.54,187.51,2.99]
[1755366046743,2.91,187.53,187.51,2.99]
[1755366046933,2.91,187.51,187.44,2.99]
[1755366047136,4.46165574,187.58,187.44,2.99]
[1755366047137,2.91,187.49,187.44,2.99]
[1755366047335,2.91,187.49,187.43,1.63281987]
[1755366047534,1.63281987,187.52,187.44,2.99]
[1755366047735,2.91,187.48,187.46,2.99]
[1755366048347,2.91,187.47,187.46,2.99]
[1755366050247,2.91,187.47,187.45,2.86]
[1755366050546,2.91,187.47,187.43,2.86]
[1755366051045,2.91,187.47,187.44,2.86]
[1755366052039,1.63281987,187.49,187.43,5.3315]
[1755366052239,3.05,187.48,187.43,5.3315]
[1755366052446,3.05,187.48,187.44,2.86]
[1755366052643,2.55527376,187.51,187.44,2.86]
[1755366052842,3.05,187.47,187.44,2.86]
[1755366055748,8.3804,187.47,187.44,2.86]
[1755366055944,3.05,187.5,187.44,2.86]
[1755366056554,3.05,187.53,187.49,2.86]
[1755366057358,3.05,187.53,187.45,2.86]
[1755366057652,2.55527376,187.57,187.44,2.55527376]
[1755366057859,3.05,187.53,187.45,2.86]
[1755366059359,5.3297,187.5,187.46,5.3306]
[1755366059560,3.05,187.53,187.42,2.86]
[1755366060160,3.05,187.48,187.46,2.86]
[1755366060362,3.05,187.53,187.44,2.55527376]
[1755366060762,8.3788,187.53,187.48,5.3298]
[1755366060958,3.05,187.52,187.49,2.86]
[1755366061264,3.05,187.51,187.49,2.86]
[1755366061460,5.329,187.52,187.49,2.86]
[1755366061664,3.05,187.5,187.49,2.86]
[1755366061865,8.379,187.52,187.49,2.86]
[1755366062061,3.05,187.51,187.49,2.86]
[1755366063866,3.05,187.52,187.49,2.86]
[1755366064069,3.05,187.52,187.49,5.3298]
[1755366064268,3.05,187.52,187.5,2.86]
[1755366064469,3.05,187.52,187.51,2.86]
[1755366065768,3.05,187.52,187.47,5.3303]
[1755366065970,3.05,187.52,187.48,2.86]
[1755366066468,8.3793,187.51,187.49,2.86]
[1755366066669,8.3793,187.51,187.47,5.3303]
[1755366066871,8.3793,187.51,187.5,2.86]
[1755366067673,8.3793,187.51,187.47,5.3303]
[1755366067875,8.3795,187.5,187.49,2.86]
[1755366070272,3.05,187.5,187.49,2.86]
[1755366071073,8.3795,187.5,187.49,2.86]
[1755366071372,3.05,187.5,187.49,2.86]
[1755366073274,8.3795,187.5,187.49,2.86]
[1755366079983,8.22,187.49,187.48,2.96]
[1755366081581,8.2202,187.48,187.47,2.96]
[1755366081882,2.89,187.48,187.46,2.96]
[1755366082583,8.2205,187.47,187.46,2.96]
[1755366084085,2.89,187.45,187.43,6.96562021]
[1755366084680,2.89,187.45,187.44,2.96]
[1755366085084,5.3308,187.46,187.44,2.96]
[1755366085292,8.2208,187.46,187.44,2.96]
[1755366085886,2.89,187.45,187.4,2.96]
[1755366086186,2.89,187.44,187.4,2.96]
[1755366086778,2.89,187.51,187.4,2.96]
[1755366086987,2.89,187.49,187.4,2.96]
[1755366087284,2.89,187.49,187.39,2.96]
[1755366087983,2.89,187.46,187.43,2.96]
[1755366088384,5.3307,187.46,187.43,8.2915]
[1755366088585,2.89,187.45,187.44,2.96]
[1755366088986,8.2209,187.45,187.44,2.96]
[1755366090789,5.3309,187.45,187.44,2.96]
[1755366090980,8.2209,187.45,187.44,2.96]
[1755366094591,5.3317,187.43,187.4,5.3322]
[1755366094789,2.89,187.42,187.41,2.96]
[1755366094993,2.89,187.42,187.39,8.2925]
[1755366095290,2.89,187.48,187.4,2.96]
[1755366095489,2.89,187.46,187.4,2.96]
[1755366095690,5.332,187.42,187.4,2.96]
[1755366095885,2.89,187.41,187.4,2.96]
[1755366096290,8.2221,187.41,187.4,2.96]
[1755366097200,2.89,187.45,187.36,2.96]
[1755366097495,2.89,187.43,187.36,2.96]
[1755366098792,5.3328,187.39,187.36,2.96]
[1755366098991,8.2228,187.39,187.36,2.96]
[1755366099188,2.89,187.41,187.36,2.96]
[1755366099389,2.89,187.38,187.36,2.96]
[1755366100298,8.223,187.38,187.36,2.96]
[1755366101599,8.2232,187.37,187.36,2.96]
[1755366101995,5.3332,187.37,187.36,2.96]
[1755366102199,8.2232,187.37,187.36,2.96]
[1755366103705,5.3336,187.36,187.33,8.2942]
[1755366103904,2.89,187.35,187.34,2.96]
[1755366104706,2.89,187.42,187.31,2.96]
[1755366105106,5.3344,187.33,187.31,2.96]
[1755366105305,8.2244,187.33,187.31,2.96]
[1755366106406,2.89,187.36,187.32,2.96]
[1755366106607,2.89,187.42,187.32,2.96]
[1755366108407,8.2236,187.36,187.34,2.96]
[1755366108805,2.85,187.38,187.36,2.96]
[1755366109309,8.1832,187.37,187.36,2.96]
[1755366112113,2.85,187.43,187.36,2.96]
[1755366114312,5.3329,187.39,187.36,5.3334]
[1755366114511,2.85,187.38,187.37,2.96]
[1755366116516,5.3329,187.39,187.38,2.96]
[1755366117318,8.1824,187.4,187.38,2.96]
[1755366119320,2.85,187.39,187.38,2.96]
[1755366119521,2.85,187.46,187.38,2.96]
[1755366119724,4.06378871,187.45,187.38,2.96]
[1755366119910,2.85,187.44,187.38,2.96]
[1755366121216,5.3324,187.4,187.38,2.96]
[1755366121424,8.1824,187.4,187.38,2.96]
[1755366122214,2.5548877,187.47,187.34,44.5548877]
[1755366122419,4.06592007,187.46,187.4,2.5548877]
[1755366122718,2.85,187.47,187.41,2.96]
[1755366123121,5.3309,187.46,187.43,5.3313]
[1755366123319,2.85,187.45,187.44,2.96]
[1755366123721,8.1809,187.45,187.44,2.96]
[1755366123925,2.85,187.45,187.44,2.96]
[1755366124120,2.85,187.46,187.44,2.96]
[1755366124624,2.85,187.46,187.44,8.2912]
[1755366124920,2.85,187.46,187.45,2.96]
[1755366131330,8.1806,187.46,187.45,2.96]
[1755366133830,2.85,187.46,187.45,2.96]
[1755366143045,3.0,187.47,187.45,2.96]
[1755366144046,5.3302,187.48,187.45,2.96]
[1755366144245,3.0,187.46,187.45,2.96]
[1755366149950,8.3306,187.46,187.45,2.96]
[1755366150946,3.0,187.46,187.45,2.96]
[1755366156554,8.3306,187.46,187.45,2.96]
[1755366156953,3.0,187.46,187.45,2.96]
[1755366169164,7.09805442,187.46,187.45,2.96]
[1755366169771,7.09805442,187.46,187.45,8.2909]
[1755366169965,2.83,187.49,187.46,3.13]
[1755366170158,4.09904169,187.48,187.47,4.76489814]
[1755366170359,2.83,187.5,187.47,10.09509814]
[1755366170558,6.92872603,187.49,187.48,3.13]
[1755366172464,2.83,187.49,187.48,3.13]
[1755366172666,2.83,187.5,187.49,3.13]
[1755366173062,6.92786604,187.5,187.49,3.13]
[1755366173262,2.83,187.5,187.49,3.13]
[1755366175164,4.46489814,187.55,187.49,5.3298]
[1755366175369,2.83,187.52,187.5,3.13]
[1755366175766,2.83,187.52,187.5,8.4593]
[1755366175972,2.83,187.53,187.5,3.13]
[1755366176172,2.83,187.53,187.51,1.63489814]
[1755366176370,2.83,187.53,187.52,3.13]
[1755366178873,2.83,187.53,187.52,5.3289]
[1755366179072,5.3279,187.56,187.53,3.13]
[1755366179271,2.83,187.54,187.53,3.13]
[1755366181179,2.83,187.54,187.53,8.4587]
[1755366181776,2.83,187.54,187.53,3.13]
[1755366182584,5.3284,187.54,187.51,6.96409814]
[1755366182784,2.83,187.54,187.51,3.13]
[1755366183482,5.3291,187.52,187.5,3.13]
[1755366183786,2.83,187.51,187.5,3.13]
[1755366190286,8.1592,187.51,187.5,3.13]
[1755366190488,2.83,187.54,187.49,3.13]
[1755366190684,2.83,187.52,187.49,3.13]
[1755366191279,5.3295,187.5,187.49,3.13]
[1755366191474,8.1595,187.5,187.49,3.13]
[1755366195192,1.63489814,187.53,187.46,3.13]
[1755366195489,4.46489814,187.51,187.46,3.13]
[1755366195684,5.3304,187.47,187.46,3.13]
[1755366195888,2.83,187.48,187.44,3.13]
[1755366196288,8.1609,187.45,187.44,3.13]
[1755366197089,5.3313,187.44,187.43,3.13]
[1755366197590,8.1613,187.44,187.43,3.13]
[1755366198592,1.63489814,187.47,187.4,5.3323]
[1755366198593,5.3316,187.43,187.42,3.13]
[1755366199191,8.2016,187.43,187.42,3.13]
[1755366199494,5.3319,187.42,187.4,2.86]
[1755366199693,5.3319,187.42,187.41,2.86]
[1755366200090,2.87,187.42,187.31,2.86]
[1755366200292,2.87,187.42,187.37,2.86]
[1755366200790,2.87,187.39,187.38,2.86]
[1755366201984,2.87,187.39,187.35,2.86]
[1755366202387,2.87,187.39,187.32,1.63489814]
[1755366202586,8.2034,187.37,187.36,2.86]
[1755366202988,8.2034,187.37,187.34,2.86]
[1755366202989,2.87,187.36,187.34,2.86]
[1755366203391,2.87,187.36,187.35,2.86]
[1755366204890,5.333,187.38,187.35,2.86]
[1755366205092,2.87,187.37,187.35,2.86]
[1755366205288,2.87,187.36,187.35,2.86]
[1755366205492,8.203,187.38,187.35,2.86]
[1755366205693,2.55740905,187.46,187.35,2.86]
[1755366205899,2.87,187.42,187.35,2.86]
[1755366206192,2.87,187.4,187.37,2.86]
[1755366206389,2.87,187.45,187.37,2.86]
[1755366206795,2.87,187.4,187.37,2.86]
[1755366206986,2.87,187.39,187.37,2.86]
[1755366207685,2.87,187.39,187.38,2.86]
[1755366210893,2.87,187.45,187.41,2.86]